bitfinex-derivatives/quotes_ETHF0:USTF0_20250607
["timestamp","ask_amount","ask_price","bid_price","bid_amount"]
[1749307523325,0.79386,2518.0,2517.9,3.2078]
[1749307524627,0.79389,2517.9,2517.8,0.00596161]
[1749307526223,6.52516718,2517.9,2517.8,0.00596161]
[1749307526617,6.84373235,2517.9,2517.8,0.00596161]
[1749307526824,1.98485,2517.8,2517.2,0.6877]
[1749307527026,0.79412,2517.2,2517.0,2.76825]
[1749307527226,0.79409,2517.3,2517.0,1.9741]
[1749307527429,0.79409,2517.3,2517.1,0.79412]
[1749307528130,3.89876161,2517.5,2517.1,0.79413]
[1749307528325,3.89876161,2517.5,2517.0,1.47665]
[1749307528532,0.79412,2517.2,2517.1,0.79414]
[1749307528924,0.79412,2517.2,2517.0,0.6825]
[1749307528925,0.79414,2517.1,2517.0,1.47665]
[1749307529125,0.79413,2517.2,2517.1,0.79414]
[1749307529333,0.79413,2517.2,2517.0,1.47665]
[1749307529932,0.79414,2517.1,2517.0,1.47664]
[1749307530122,0.79413,2517.2,2517.1,0.79414]
[1749307530320,0.7941,2517.3,2517.0,0.6825]
[1749307530523,0.7941,2517.3,2517.2,0.79411]
[1749307530825,1.48499161,2517.5,2517.4,0.79405]
[1749307531029,0.79405,2517.4,2517.3,0.79405]
[1749307531226,0.00596161,2517.5,2517.4,0.79405]
[1749307531227,0.80000161,2517.5,2517.4,0.79405]
[1749307531428,0.79405,2517.4,2517.3,0.79406]
[1749307531630,0.79408,2517.3,2517.2,4.0019]
[1749307532132,0.79408,2517.3,2517.2,0.7941]
[1749307532335,0.79408,2517.3,2517.2,3.2078]
[1749307533637,0.63516161,2517.5,2517.1,0.79414]
[1749307533928,0.79411,2517.3,2517.1,0.79414]
[1749307534134,0.79411,2517.2,2517.1,2.05884]
[1749307534433,0.79411,2517.2,2517.1,1.2647]
[1749307534633,0.79411,2517.2,2517.0,1.47665]
[1749307534834,0.79414,2517.1,2517.0,0.6825]
[1749307536126,0.79413,2517.2,2517.1,0.79414]
[1749307536329,0.06891172,2517.3,2517.0,0.6825]
[1749307536530,0.79414,2517.2,2517.1,0.79414]
[1749307538436,0.79414,2517.1,2517.0,1.47665]
[1749307538943,0.79414,2517.1,2517.0,0.6825]
[1749307539636,0.79417,2517.0,2516.9,0.00596161]
[1749307540231,2.12967,2517.0,2516.9,0.00596161]
[1749307541042,0.79417,2517.0,2516.9,0.00596161]
[1749307543935,2.05667,2517.0,2516.9,0.00596161]
[1749307545837,0.79436,2516.4,2516.1,4.5091]
[1749307546046,0.7944,2516.3,2516.2,0.6469]
[1749307546247,0.79451,2516.0,2515.8,3.8673]
[1749307546439,0.79451,2516.0,2515.8,4.66182]
[1749307546850,0.79448,2516.1,2515.9,0.79452]
[1749307547042,0.79449,2516.0,2515.8,3.8673]
[1749307547346,0.79449,2516.0,2515.8,5.1686]
[1749307547547,0.79449,2516.0,2515.9,0.79451]
[1749307550356,0.79452,2515.9,2515.8,5.1686]
[1749307550943,0.79452,2515.9,2515.8,5.96315]
[1749307551646,0.79452,2515.9,2515.8,3.8673]
[1749307551845,0.79452,2515.9,2515.8,4.66185]
[1749307552349,0.79452,2515.9,2515.8,4.66184]
[1749307552550,0.86342172,2516.0,2515.9,0.79452]
[1749307552751,0.86340172,2516.0,2515.9,0.79452]
[1749307555547,0.79452,2515.9,2515.8,5.96933]
[1749307555749,0.79452,2515.9,2515.8,4.66183]
[1749307556448,0.79452,2515.9,2515.8,3.2078]
[1749307556757,0.79458,2515.7,2515.6,0.00596161]
[1749307557751,2.15158,2515.7,2515.6,0.00596161]
[1749307558348,0.79458,2515.7,2515.6,0.00596161]
[1749307558549,0.6782,2515.8,2515.7,0.79458]
[1749307558752,0.86342172,2516.0,2515.9,0.79452]
[1749307558954,0.79452,2515.9,2515.8,0.79453]
[1749307559351,0.86342172,2516.0,2515.8,0.79453]
[1749307559551,0.79452,2515.9,2515.8,0.79453]
[1749307559753,0.79452,2515.9,2515.6,1.93796161]
[1749307560149,0.06891172,2516.0,2515.6,1.93796161]
[1749307560353,0.79455,2515.9,2515.7,0.79456]
[1749307560557,0.79456,2515.8,2515.6,2.73255161]
[1749307561056,0.79458,2515.7,2515.6,0.67886161]
[1749307565358,1.42467,2515.8,2515.6,1.47348161]
[1749307565551,0.79451,2516.0,2515.8,0.79454]
[1749307565758,0.79452,2515.9,2515.8,0.79454]
[1749307566952,0.79452,2515.9,2515.8,3.8871]
[1749307567258,0.00596161,2516.2,2516.0,0.79448]
[1749307567259,0.79448,2516.1,2516.0,0.79448]
[1749307567659,0.79448,2516.1,2515.9,0.7945]
[1749307567963,0.00596161,2516.2,2516.1,0.79446]
[1749307568559,0.00596161,2516.2,2516.1,2.15406]
[1749307571158,0.00596161,2516.2,2516.1,5.36186]
[1749307574160,0.80039161,2516.2,2516.1,5.36186]
[1749307574364,0.79446,2516.1,2516.0,0.6594]
[1749307574756,0.79446,2516.1,2516.0,1.45389]
[1749307575154,0.79446,2516.1,2516.0,0.6594]
[1749307575759,0.79452,2515.9,2515.8,3.8871]
[1749307575961,0.79452,2515.9,2515.8,3.2078]
[1749307576664,1.95127401,2515.9,2515.8,3.2078]
[1749307576866,0.79452,2515.9,2515.8,4.00235]
[1749307577171,1.49231,2516.0,2515.9,0.79452]
[1749307577365,2.6491724,2516.0,2515.9,0.79452]
[1749307577570,1.1568624,2516.0,2515.9,0.79452]
[1749307577768,0.00596161,2516.2,2516.1,0.79446]
[1749307578061,0.00596161,2516.2,2516.1,4.00226]
[1749307579767,0.86930333,2516.2,2516.1,4.00226]
[1749307581865,0.86930333,2516.2,2516.1,3.2078]
[1749307582167,0.79452,2515.9,2515.8,3.2078]
[1749307582670,0.79455,2515.8,2515.7,1.47548]
[1749307583271,0.79453,2515.9,2515.8,0.79454]
[1749307583471,0.79452,2516.0,2515.9,0.79452]
[1749307583873,0.79455,2515.8,2515.7,1.47547]
[1749307584876,0.79455,2515.8,2515.7,0.6809]
[1749307587382,0.79458,2515.7,2515.6,0.00596161]
[1749307589579,0.79458,2515.7,2515.6,0.80058161]
[1749307591878,0.79458,2515.8,2515.7,0.79457]
[1749307592078,1.95080672,2515.8,2515.7,0.79457]
[1749307595276,1.15622672,2515.8,2515.7,0.79457]
[1749307595480,1.3046,2516.1,2515.9,0.79452]
[1749307595481,0.7945,2516.0,2515.9,0.79452]
[1749307595677,1.3046,2516.1,2515.6,1.99248161]
[1749307595886,0.06891172,2515.8,2515.7,0.79458]
[1749307596579,0.06891172,2515.8,2515.7,5.94348]
[1749307598680,0.00596161,2516.2,2516.1,0.79446]
[1749307600485,0.80039161,2516.2,2516.1,0.79446]
[1749307600882,0.00596161,2516.2,2516.1,0.79446]
[1749307601790,0.00596161,2516.2,2516.1,2.09296]
[1749307606092,1.3278,2516.8,2516.7,0.79427]
[1749307606395,0.79418,2517.0,2516.9,0.79421]
[1749307606586,1.95099617,2517.0,2516.9,0.79421]
[1749307608502,1.15681617,2517.0,2516.9,0.79421]
[1749307609395,0.79414,2517.1,2517.0,0.79417]
[1749307609597,1.94948648,2517.1,2517.0,0.79417]
[1749307610399,1.15534648,2517.1,2517.0,4.00197]
[1749307610594,3.2078,2518.0,2517.0,4.00197]
[1749307610595,2.0244,2517.8,2517.7,0.79395]
[1749307610793,1.82796772,2517.8,2517.7,0.79395]
[1749307610994,0.6732,2517.8,2517.7,4.00175]
[1749307611696,0.79388,2518.0,2517.7,4.00175]
[1749307611697,0.79983161,2518.0,2517.8,0.79389]
[1749307612000,0.00596161,2518.0,2517.7,3.2078]
[1749307612200,0.00596161,2518.0,2517.9,0.79389]
[1749307612700,0.79982161,2518.0,2517.9,0.79389]
[1749307613602,0.79982161,2518.0,2517.8,0.79391]
[1749307614200,0.79982161,2518.0,2517.7,3.2078]
[1749307614398,0.79982161,2518.0,2517.9,0.79389]
[1749307614701,0.00596161,2518.0,2517.9,0.79389]
[1749307616393,0.00596161,2518.0,2517.9,4.00169]
[1749307619407,0.79363,2518.8,2518.7,0.79364]
[1749307619704,0.6454,2518.9,2518.8,0.79361]
[1749307620707,0.6454,2518.9,2518.8,4.00141]
[1749307621001,0.6454,2518.9,2518.4,3.2078]
[1749307621204,5.1919,2518.7,2518.1,3.2078]
[1749307621400,0.79382,2518.2,2517.8,0.6642]
[1749307621596,0.79383,2518.1,2518.0,0.79383]
[1749307622098,2.0275,2518.2,2517.8,0.6642]
[1749307622099,2.6708,2518.2,2517.9,0.79387]
[1749307622295,2.6708,2518.2,2517.7,3.2078]
[1749307622605,2.6708,2518.2,2517.5,0.00596161]
[1749307622606,2.6708,2518.2,2517.9,0.79388]
[1749307623400,0.79387,2518.0,2517.9,0.79388]
[1749307623604,0.79385,2518.1,2517.9,0.79388]
[1749307623998,0.79386,2518.0,2517.9,0.79388]
[1749307624903,0.7939,2517.9,2517.7,0.79393]
[1749307625104,2.1853,2517.9,2517.8,0.79392]
[1749307625303,1.3914,2517.9,2517.8,0.79392]
[1749307625697,2.18529,2517.9,2517.8,0.79392]
[1749307626005,2.18529,2517.9,2517.7,0.79392]
[1749307626206,0.79395,2517.7,2517.6,3.2078]
[1749307626703,0.6926,2517.8,2517.6,3.2078]
[1749307626900,0.79398,2517.6,2517.5,0.00596161]
[1749307627305,2.18537,2517.7,2517.6,0.79398]
[1749307628004,1.3914,2517.7,2517.6,0.79398]
[1749307628211,0.69856161,2517.8,2517.7,0.79395]
[1749307629308,0.00596161,2517.8,2517.7,0.79395]
[1749307630611,0.79398,2517.6,2517.5,0.00596161]
[1749307631205,0.79398,2517.6,2516.8,1.98555]
[1749307631206,0.79416,2517.1,2516.6,5.1935]
[1749307631411,0.79402,2517.5,2517.4,0.79404]
[1749307631611,2.16082,2517.5,2517.4,0.79404]
[1749307631807,0.79405,2517.4,2517.3,0.79405]
[1749307632508,1.3668,2517.5,2517.4,0.79405]
[1749307632710,2.16082,2517.5,2517.4,0.79405]
[1749307633106,2.16082,2517.5,2517.1,0.63996161]
[1749307633313,2.16082,2517.5,2517.4,0.79405]
[1749307634710,2.16082,2517.5,2517.3,0.79406]
[1749307634910,0.79405,2517.4,2517.3,0.79406]
[1749307635515,1.3668,2517.5,2517.3,0.79406]
[1749307635812,0.79405,2517.4,2517.3,0.79406]
[1749307640415,0.79411,2517.2,2517.1,1.43409161]
[1749307640613,0.79411,2517.2,2517.1,0.63996161]
[1749307640813,0.79411,2517.2,2517.1,1.43410161]
[1749307642014,0.79411,2517.2,2517.1,0.00596161]
[1749307644217,1.98559,2516.9,2516.4,0.79435]
[1749307644425,0.79436,2516.4,2516.3,1.45538]
[1749307644610,0.79434,2516.5,2516.4,0.79435]
[1749307644814,0.79436,2516.4,2516.3,1.45537]
[1749307645116,0.79436,2516.4,2516.3,0.661]
[1749307645309,0.79435,2516.5,2516.4,0.79435]
[1749307645714,0.79436,2516.4,2516.3,0.661]
[1749307646319,0.79436,2516.4,2516.3,1.4554]
[1749307646624,0.79435,2516.5,2516.3,1.4554]
[1749307646919,2.0533,2516.7,2516.3,0.661]
[1749307647119,3.2078,2517.0,2516.3,3.8688]
[1749307647317,3.2078,2517.0,2516.6,3.2078]
[1749307647509,3.2078,2517.0,2516.9,0.79421]
[1749307648814,3.2078,2517.0,2516.7,2.6314]
[1749307648815,3.2078,2517.0,2516.8,0.79421]
[1749307649011,0.79424,2516.8,2516.7,0.6467]
[1749307649222,0.79436,2516.4,2516.3,3.8837]
[1749307649524,0.79436,2516.5,2516.3,2.11699]
[1749307649820,0.79436,2516.4,2516.3,2.11699]
[1749307650921,0.79436,2516.4,2516.3,1.3226]
[1749307651223,0.79436,2516.4,2516.3,0.6467]
[1749307652227,0.79443,2516.2,2516.1,3.21376161]
[1749307655721,0.86334172,2516.2,2516.1,3.21376161]
[1749307659424,0.86334172,2516.2,2516.1,0.00596161]
[1749307660133,2.25034172,2516.2,2516.1,0.00596161]
[1749307663835,0.86334172,2516.2,2516.1,0.00596161]
[1749307664034,0.86334172,2516.2,2516.1,0.80042161]
[1749307664338,0.06891172,2516.2,2516.1,0.80042161]
[1749307664834,0.86334172,2516.2,2516.1,0.80042161]
[1749307665033,0.06891172,2516.2,2516.1,0.80042161]
[1749307666538,0.86334172,2516.2,2516.1,0.80042161]
[1749307666933,0.86334172,2516.2,2516.1,0.00596161]
[1749307667629,0.06891172,2516.2,2516.1,0.80042161]
[1749307668036,0.06891172,2516.2,2516.1,5.80042161]
[1749307669340,0.00596161,2516.4,2516.3,0.7944]
[1749307669636,0.00596161,2516.4,2516.3,4.0022]
[1749307669838,0.00596161,2516.4,2516.3,9.6308]
[1749307670637,3.2078,2517.0,2516.8,0.79421]
[1749307670840,7.88732343,2517.9,2516.8,0.79421]
[1749307670841,0.79421,2516.9,2516.8,0.79421]
[1749307671041,3.8407,2517.4,2516.8,0.79421]
[1749307671238,0.7942,2517.0,2516.8,0.79421]
[1749307671435,0.79421,2516.9,2516.8,0.79421]
[1749307671741,0.79419,2517.0,2516.8,0.79421]
[1749307671940,0.79417,2517.0,2516.8,0.79421]
[1749307672141,0.79421,2516.9,2516.7,2.05265]
[1749307672442,0.79421,2516.9,2516.8,0.6714]
[1749307672639,0.79421,2516.9,2516.8,1.46564]
[1749307672839,0.79421,2516.9,2516.8,0.6714]
[1749307673031,0.79419,2517.0,2516.8,1.46564]
[1749307673839,0.7942,2517.0,2516.8,1.46564]
[1749307674040,0.79421,2516.9,2516.8,1.46564]
[1749307674538,0.00596161,2517.1,2517.0,0.79417]
[1749307674737,0.79421,2516.9,2516.8,0.6714]
[1749307675441,0.79421,2516.9,2516.8,1.46564]
[1749307676235,0.7942,2516.9,2516.8,1.46564]
[1749307676842,0.7942,2516.9,2516.8,0.6714]
[1749307677744,0.79427,2516.7,2516.6,4.00209]
[1749307677947,0.79427,2516.7,2516.6,4.69849]
[1749307678343,0.79426,2516.8,2516.7,0.79427]
[1749307678542,3.98684161,2517.1,2516.6,1.49068]
[1749307678745,0.79427,2516.7,2516.6,0.6964]
[1749307678944,1.35,2517.0,2516.6,1.49068]
[1749307679144,1.35,2517.0,2516.7,0.79426]
[1749307679347,0.79427,2516.7,2516.6,1.49068]
[1749307679550,0.79427,2516.7,2516.6,1.49069]
[1749307680052,0.79426,2516.8,2516.7,0.79427]
[1749307680548,0.79427,2516.7,2516.6,0.6964]
[1749307680747,0.79427,2516.7,2516.6,1.49069]
[1749307681051,0.79427,2516.7,2516.6,0.6964]
[1749307681444,2.65794,2516.9,2516.4,0.79434]
[1749307681646,0.79432,2516.6,2516.5,0.79433]
[1749307682048,0.79433,2516.5,2516.4,0.6642]
[1749307682747,0.79436,2516.4,2516.3,3.2078]
[1749307683452,0.79443,2516.2,2516.1,0.00596161]
[1749307684156,0.86334172,2516.2,2516.1,0.00596161]
[1749307684448,3.30893679,2516.2,2516.1,0.00596161]
[1749307685350,7.44559507,2516.2,2515.7,3.2078]
[1749307685550,1.98623,2516.0,2515.5,0.79465]
[1749307685850,0.7946,2515.7,2515.4,3.8603]
[1749307686049,0.7946,2515.7,2515.5,0.79462]
[1749307686553,0.6497,2515.8,2515.4,4.65496]
[1749307686751,0.79463,2515.6,2515.4,4.65496]
[1749307686956,0.79463,2515.6,2515.5,0.79465]
[1749307687249,2.8158,2515.7,2515.5,0.79465]
[1749307687453,0.6787,2515.7,2515.6,0.79462]
[1749307687748,0.6497,2515.8,2515.4,3.8603]
[1749307687944,1.44425,2515.8,2515.6,0.79458]
[1749307688544,0.6497,2515.8,2515.4,5.1603]
[1749307688751,1.44427,2515.8,2515.7,0.79458]
[1749307689052,0.6497,2515.8,2515.7,0.79458]
[1749307689544,1.44425,2515.8,2515.7,0.79458]
[1749307689949,0.00596161,2515.9,2515.8,0.79455]
[1749307690155,0.79457,2515.8,2515.6,0.79459]
[1749307690452,0.79458,2515.7,2515.6,0.79459]
[1749307690854,0.79461,2515.7,2515.4,3.8603]
[1749307691248,0.79461,2515.7,2515.5,0.79465]
[1749307691553,0.79461,2515.7,2515.6,0.79462]
[1749307691944,1.3879,2515.8,2515.7,0.79458]
[1749307692146,0.00596161,2515.9,2515.8,0.79455]
[1749307692351,0.00596161,2515.9,2515.8,1.48165]
[1749307693741,0.00596161,2515.9,2515.8,2.80605]
[1749307695048,0.00596161,2515.9,2515.8,0.6871]
[1749307695353,0.80048161,2515.9,2515.8,1.48165]
[1749307695745,0.80048161,2515.9,2515.8,0.6871]
[1749307696153,0.80048161,2515.9,2515.8,1.48165]
[1749307699457,0.80048161,2515.9,2515.8,0.6871]
[1749307699949,0.00596161,2515.9,2515.4,4.5257]
[1749307700154,0.79461,2515.7,2515.6,0.79461]
[1749307700352,0.00596161,2515.9,2515.5,0.6334]
[1749307700353,1.38947333,2515.9,2515.5,0.6334]
[1749307700560,0.79457,2515.8,2515.7,0.79457]
[1749307701359,0.07487333,2515.9,2515.8,0.79455]
[1749307703356,0.07487333,2515.9,2515.8,4.00235]
[1749307709461,0.86939333,2515.9,2515.8,4.00235]
[1749307709657,0.79457,2515.8,2515.6,1.2749]
[1749307709862,0.79458,2515.7,2515.6,0.7946]
[1749307710762,0.79462,2515.6,2515.5,4.63583]
[1749307711164,0.79461,2515.7,2515.6,0.7946]
[1749307712561,0.79462,2515.6,2515.5,4.63583]
[1749307712954,0.79462,2515.6,2515.5,4.63585]
[1749307713162,1.4277,2515.7,2515.6,0.79462]
[1749307713354,1.7869045,2515.7,2515.6,0.79462]
[1749307713554,1.53481333,2515.9,2515.5,3.8412]
[1749307713762,1.53481333,2515.9,2515.8,0.79455]
[1749307713961,2.68854618,2515.9,2515.8,0.79455]
[1749307714562,2.61963446,2515.9,2515.8,0.79455]
[1749307715563,1.82509446,2515.9,2515.8,0.79455]
[1749307715859,0.00596161,2515.9,2515.8,4.00235]
[1749307716865,3.2078,2516.4,2516.3,0.79439]
[1749307717065,1.15326873,2516.4,2516.3,0.79439]
[1749307717568,1.15326873,2516.4,2516.3,1.47939]
[1749307717756,1.15326873,2516.4,2516.3,3.53519]
[1749307719363,0.00596161,2516.6,2516.5,0.79433]
[1749307719567,1.95263853,2516.6,2516.5,0.79433]
[1749307719764,1.95263853,2516.6,2516.4,0.79435]
[1749307719765,0.79434,2516.5,2516.4,0.79435]
[1749307719967,0.79435,2516.5,2516.4,0.79435]
[1749307720365,0.00596161,2516.6,2516.3,3.53518]
[1749307720666,1.94647486,2516.5,2516.4,0.79436]
[1749307720869,1.94645332,2516.5,2516.4,0.79436]
[1749307721069,0.79435,2516.5,2516.4,0.79436]
[1749307721371,0.80028161,2516.6,2516.5,0.79433]
[1749307721567,1.95218445,2516.6,2516.5,0.79433]
[1749307721767,1.95218445,2516.6,2516.4,0.79434]
[1749307721959,0.79433,2516.5,2516.4,0.79434]
[1749307722366,0.00596161,2516.6,2516.3,2.14567]
[1749307722573,0.79435,2516.5,2516.4,0.79436]
[1749307722769,1.15285757,2516.5,2516.3,1.3513]
[1749307722970,0.79435,2516.5,2516.4,0.79435]
[1749307723769,0.80028161,2516.6,2516.4,0.79435]
[1749307723971,0.79433,2516.5,2516.4,0.79435]
[1749307724168,0.79436,2516.4,2516.3,0.685]
[1749307724669,0.79436,2516.4,2516.3,1.47939]
[1749307726268,0.79438,2516.4,2516.2,3.2078]
[1749307726474,1.9422,2516.5,2516.3,0.79439]
[1749307726670,1.2768,2516.5,2516.4,0.79436]
[1749307726870,0.00596161,2516.6,2516.5,0.79433]
[1749307727070,1.16972427,2516.6,2516.5,0.79433]
[1749307728567,1.96404427,2516.6,2516.5,0.79433]
[1749307729075,0.79434,2516.5,2516.4,0.79435]
[1749307729276,0.80028161,2516.6,2516.5,0.79433]
[1749307729467,1.96379582,2516.6,2516.5,0.79433]
[1749307729869,0.79434,2516.5,2516.4,0.79435]
[1749307731674,0.86918333,2516.6,2516.5,0.79433]
[1749307732177,0.79434,2516.5,2516.4,0.79434]
[1749307732673,0.86919333,2516.6,2516.2,3.2078]
[1749307732872,0.86919333,2516.6,2516.5,0.79433]
[1749307733073,2.03323857,2516.6,2516.5,0.79433]
[1749307733576,0.79435,2516.5,2516.4,0.79435]
[1749307734977,0.07487333,2516.6,2516.2,3.2078]
[1749307735177,0.79436,2516.5,2516.4,0.79435]
[1749307737272,0.07487333,2516.6,2516.3,0.79438]
[1749307737474,0.79439,2516.3,2516.2,3.2078]
[1749307738072,0.79439,2516.3,2516.0,1.47037]
[1749307738073,0.79446,2516.1,2516.0,0.6759]
[1749307738276,1.3165,2516.2,2516.0,0.6759]
[1749307738577,2.11095,2516.2,2516.1,0.79446]
[1749307738970,1.3165,2516.2,2516.1,0.79446]
[1749307739375,1.42288,2516.4,2516.3,0.7944]
[1749307739772,1.42288,2516.4,2516.0,3.8837]
[1749307739773,0.79441,2516.3,2516.2,0.79441]
[1749307740378,0.79445,2516.2,2516.1,0.79445]
[1749307742592,0.79441,2516.3,2516.2,0.79441]
[1749307743178,1.95962817,2516.3,2516.2,0.79441]
[1749307743379,0.79441,2516.3,2516.2,0.79441]
[1749307744086,2.78699,2516.4,2516.3,0.7944]
[1749307744390,1.16568457,2516.4,2516.3,0.7944]
[1749307746491,1.96004457,2516.4,2516.3,0.7944]
[1749307747396,0.79441,2516.3,2516.2,0.79441]
[1749307747695,1.96009457,2516.3,2516.2,0.79441]
[1749307747897,1.16568457,2516.3,2516.1,0.79446]
[1749307748195,0.86333172,2516.3,2516.2,0.79443]
[1749307748391,0.79443,2516.2,2516.1,0.79444]
[1749307748597,1.96118098,2516.2,2516.1,0.79444]
[1749307748994,0.06891172,2516.3,2516.2,0.79443]
[1749307749189,2.03004593,2516.3,2516.2,0.79443]
[1749307749501,0.79444,2516.2,2516.1,0.79444]
[1749307749798,0.86332172,2516.3,2516.2,0.79443]
[1749307749997,2.03006559,2516.3,2516.2,0.79443]
[1749307750801,0.79446,2516.1,2516.0,3.8837]
[1749307751304,1.96125884,2516.1,2516.0,3.8837]
[1749307751599,1.16679884,2516.1,2516.0,4.67819]
[1749307751901,0.79446,2516.1,2516.0,4.67819]
[1749307752390,1.96122401,2516.1,2516.0,4.67819]
[1749307752799,0.79446,2516.1,2516.0,4.67819]
[1749307752997,0.79445,2516.2,2516.1,0.79445]
[1749307753201,1.16668493,2516.2,2516.1,0.79445]
[1749307753594,1.16668493,2516.2,2516.1,2.07475]
[1749307754495,1.96111493,2516.2,2516.1,0.79445]
[1749307756995,1.16668493,2516.2,2516.0,0.6759]
[1749307757192,0.79445,2516.2,2516.1,0.79444]
[1749307757400,0.79445,2516.2,2515.9,4.66161]
[1749307757401,0.79449,2516.0,2515.9,4.66161]
[1749307758300,1.96106233,2516.0,2515.9,4.66161]
[1749307758501,1.16657233,2516.0,2515.9,4.66161]
[1749307758801,1.96106233,2516.0,2515.9,4.66161]
[1749307759500,1.16657233,2516.0,2515.9,4.66161]
[1749307759690,2.72543,2516.2,2516.1,0.79446]
[1749307759899,2.61987001,2516.2,2516.1,0.79446]
[1749307760091,1.82544001,2516.2,2516.1,0.79446]
[1749307760301,1.16624001,2516.2,2516.1,0.79446]
[1749307760500,1.96067001,2516.2,2516.1,0.79446]
[1749307761001,1.16624001,2516.2,2516.1,0.79446]
[1749307761201,1.96067001,2516.2,2516.1,0.79446]
[1749307762405,0.79447,2516.1,2516.0,0.79446]
[1749307762599,0.79447,2516.1,2515.9,4.6616]
[1749307762600,0.79449,2516.0,2515.9,4.6616]
[1749307762799,1.96073001,2516.0,2515.9,4.6616]
[1749307763203,2.02964173,2516.0,2515.9,4.6616]
[1749307765408,1.23515173,2516.0,2515.9,4.6616]
[1749307766611,2.02964173,2516.0,2515.9,3.8671]
[1749307767606,2.02964173,2516.0,2515.9,3.2078]
[1749307769010,4.08464173,2516.0,2515.9,3.2078]
[1749307770113,0.79458,2515.7,2515.6,1.4783]
[1749307770315,1.96082001,2515.7,2515.6,1.4783]
[1749307770617,0.79458,2515.7,2515.6,1.4783]
[1749307772706,0.79457,2515.8,2515.7,0.79457]
[1749307772910,0.79458,2515.7,2515.6,1.4783]
[1749307775111,0.79458,2515.8,2515.7,0.79457]
[1749307775311,1.95866669,2515.8,2515.7,0.79457]
[1749307776217,0.79468,2515.4,2515.3,4.00846161]
[1749307776411,0.79464,2515.6,2515.5,0.79463]
[1749307777712,0.86351172,2515.7,2515.6,0.79462]
[1749307778313,2.02749011,2515.7,2515.6,0.79462]
[1749307778714,0.86351172,2515.7,2515.6,0.79462]
[1749307779225,0.06891172,2515.7,2515.6,0.79462]
[1749307779516,0.86349172,2515.7,2515.6,0.79462]
[1749307780917,0.06891172,2515.7,2515.6,0.79462]
[1749307782922,0.06891172,2515.7,2515.6,4.00242]
[1749307791917,1.23462182,2515.7,2515.6,4.00242]
[1749307792423,0.06891172,2515.7,2515.6,4.00242]
[1749307792627,1.23459902,2515.7,2515.6,4.00242]
[1749307793128,0.06891172,2515.7,2515.6,4.00242]
[1749307793328,1.23472486,2515.7,2515.6,4.00242]
[1749307793628,0.06891172,2515.7,2515.6,4.00242]
[1749307794224,1.23483908,2515.7,2515.6,4.00242]
[1749307800236,2.02941908,2515.7,2515.6,4.00242]
[1749307801823,1.23483908,2515.7,2515.6,4.00242]
[1749307802732,1.23483908,2515.7,2515.3,3.85396161]
[1749307802937,1.96054736,2515.6,2515.5,0.79463]
[1749307803929,2.59684736,2515.6,2515.5,0.79463]
[1749307804434,1.80222736,2515.6,2515.5,0.79463]
[1749307806031,1.16592736,2515.6,2515.5,0.79463]
[1749307810727,0.79441,2516.3,2515.7,1.98646]
[1749307810933,1.43438,2516.4,2516.3,0.79439]
[1749307811234,0.79441,2516.3,2516.2,0.79441]
[1749307812039,0.64,2516.4,2516.0,3.2078]
[1749307812240,1.43438,2516.4,2516.3,0.79439]
[1749307812842,1.43438,2516.4,2516.2,0.79441]
[1749307812843,0.7944,2516.3,2516.2,0.79441]
[1749307813330,0.79443,2516.2,2516.1,0.79444]
[1749307813535,0.79442,2516.3,2516.2,0.79442]
[1749307813741,0.79443,2516.2,2516.1,0.79444]
[1749307814342,0.79443,2516.3,2516.1,0.79444]
[1749307814643,0.64,2516.4,2516.1,0.79443]
[1749307814941,0.79443,2516.2,2516.1,0.79443]
[1749307815844,0.79446,2516.1,2516.0,4.00227]
[1749307816044,0.79445,2516.2,2516.1,0.79445]
[1749307816545,0.79445,2516.2,2515.7,3.37336]
[1749307816546,0.79451,2516.0,2515.9,0.79451]
[1749307817139,1.47881,2516.0,2515.9,0.79451]
[1749307817445,0.6843,2516.0,2515.9,0.79451]
[1749307817641,5.86947,2516.5,2515.8,0.6612]
[1749307817642,0.79445,2516.2,2515.8,0.6612]
[1749307817842,0.79445,2516.2,2515.8,1.9864]
[1749307818045,0.79445,2516.2,2516.1,0.79445]
[1749307818247,0.79442,2516.3,2516.2,0.79442]
[1749307818443,1.48498,2516.4,2516.3,0.7944]
[1749307818643,4.67795,2516.5,2516.4,0.79436]
[1749307819645,0.79438,2516.4,2516.3,0.79438]
[1749307822848,1.95322459,2516.4,2516.3,0.79438]
[1749307823249,0.7944,2516.3,2516.2,0.7944]
[1749307823547,1.95324459,2516.3,2516.2,0.7944]
[1749307827651,0.7944,2516.3,2516.2,0.7944]
[1749307828448,1.95261741,2516.3,2516.2,0.7944]
[1749307828846,0.7944,2516.3,2516.2,0.7944]
[1749307829048,0.79445,2516.2,2516.1,0.79444]
[1749307829950,0.79446,2516.1,2516.0,4.533]
[1749307830155,0.79446,2516.1,2516.0,3.2078]
[1749307830547,0.79446,2516.1,2516.0,4.00229]
[1749307831553,0.79449,2516.0,2515.9,1.46432]
[1749307833955,0.79452,2515.9,2515.8,1.45573]
[1749307834359,0.79452,2515.9,2515.8,0.6612]
[1749307835353,0.79452,2515.9,2515.8,1.45575]
[1749307835556,0.7945,2516.0,2515.9,0.79449]
[1749307835956,1.95370222,2516.0,2515.9,0.79449]
[1749307838356,0.79455,2515.8,2515.7,4.00237]
[1749307840061,0.79455,2515.8,2515.7,3.2078]
[1749307840261,1.95415155,2515.8,2515.7,3.2078]
[1749307841159,3.22615155,2515.8,2515.7,3.2078]
[1749307844565,3.22615155,2515.8,2515.7,4.00238]
[1749307845066,3.22615155,2515.8,2515.7,3.2078]
[1749307845461,1.95415155,2515.8,2515.7,3.2078]
[1749307846467,1.95415155,2515.8,2515.7,4.00238]
[1749307846661,0.79455,2515.8,2515.7,4.00238]